bitfinex/quotes_ETHUSD_20240917
["timestamp","ask_amount","ask_price","bid_price","bid_amount"]
[1726595161748,8.44308,2368.8,2368.7,0.0392167]
[1726595162164,8.99308,2368.8,2368.7,0.0392167]
[1726595163007,4.22154,2368.8,2368.7,0.0392167]
[1726595163524,8.44308,2368.8,2368.7,0.0392167]
[1726595163705,4.22154,2368.8,2368.7,0.0392167]
[1726595163916,8.44308,2368.8,2368.7,0.0392167]
[1726595164294,4.22154,2368.8,2368.7,0.0392167]
[1726595164523,8.44308,2368.8,2368.7,0.0392167]
[1726595164688,18.53592,2368.8,2368.7,0.0392167]
[1726595165017,14.75240456,2368.8,2368.7,0.0392167]
[1726595165185,18.97394456,2368.8,2368.7,0.0392167]
[1726595167780,25.38964377,2368.8,2368.7,0.0392167]
[1726595168427,11.88110456,2368.8,2368.7,0.0392167]
[1726595168729,8.44308,2368.8,2368.7,0.0392167]
[1726595168890,4.22154,2368.8,2368.7,2.3983167]
[1726595169097,4.61835921,2369.3,2368.7,2.63814837]
[1726595169285,4.22146,2368.9,2368.7,2.63814837]
[1726595169480,4.22121,2369.0,2368.8,0.26381484]
[1726595169791,4.22088,2369.2,2368.9,2.3591]
[1726595170015,4.22119,2369.0,2368.9,2.3591]
[1726595170198,8.44238,2369.0,2368.9,2.3591]
[1726595170407,4.22119,2369.0,2368.9,2.3591]
[1726595170714,4.22119,2369.0,2368.9,2.59893167]
[1726595170923,4.22096,2369.2,2368.9,2.59893167]
[1726595171096,4.22093,2369.2,2368.9,2.59893167]
[1726595171275,4.2204,2369.5,2369.0,2.409]
[1726595171476,9.61612088,2369.7,2369.1,0.68700417]
[1726595171477,4.22051,2369.4,2369.1,0.68700417]
[1726595171921,4.22024,2369.6,2369.1,0.68700417]
[1726595172128,4.22048,2369.4,2369.2,2.409]
[1726595172417,4.22048,2369.4,2369.2,2.71860042]
[1726595173053,4.22065,2369.3,2369.2,2.71860042]
[1726595173235,4.22048,2369.4,2369.2,2.409]
[1726595174950,8.4413,2369.3,2369.2,2.409]
[1726595175268,4.22099,2369.2,2368.8,2.2977]
[1726595175412,4.22119,2369.0,2368.8,2.53139167]
[1726595175814,8.44249,2369.0,2368.8,2.53139167]
[1726595176009,4.22096,2369.2,2368.8,2.53139167]
[1726595176249,4.22092,2369.2,2368.8,2.53139167]
[1726595176580,0.55,2369.2,2368.8,2.2977]
[1726595176761,4.22136,2368.9,2368.8,2.2977]
[1726595177733,2.19854232,2369.2,2368.8,6.51915]
[1726595177976,4.2206,2369.4,2368.8,4.22145]
[1726595178133,4.2206,2369.4,2368.9,2.72376667]
[1726595178960,8.44117,2369.4,2368.9,6.94510667]
[1726595179158,4.22057,2369.4,2369.0,2.495]
[1726595179370,4.22077,2369.3,2369.0,2.495]
[1726595179682,4.22095,2369.2,2369.0,2.495]
[1726595180049,4.22101,2369.1,2369.0,2.495]
[1726595181376,4.22101,2369.1,2368.8,2.4992]
[1726595181377,4.22145,2368.9,2368.8,2.4992]
[1726595182637,6.42175523,2368.9,2368.7,0.0392167]
[1726595182836,8.44308,2368.8,2368.7,0.0392167]
[1726595183076,10.64338523,2368.8,2368.7,0.0392167]
[1726595183451,8.44308,2368.8,2368.7,0.0392167]
[1726595183650,8.99308,2368.8,2368.7,0.0392167]
[1726595183948,12.07155686,2368.8,2368.7,0.0392167]
[1726595184171,11.63539337,2368.8,2368.7,0.0392167]
[1726595185294,15.85693337,2368.8,2368.7,0.0392167]
[1726595185494,13.21462,2368.8,2368.7,0.0392167]
[1726595186099,16.21462,2368.8,2368.7,0.0392167]
[1726595186251,16.65276812,2368.8,2368.7,0.0392167]
[1726595186448,23.95700705,2368.8,2368.7,0.0392167]
[1726595186686,26.26310705,2368.8,2368.7,0.0392167]
[1726595186889,26.2622006,2368.8,2368.7,0.0392167]
[1726595187066,23.18040812,2368.8,2368.7,0.0392167]
[1726595187906,31.04338623,2368.8,2368.7,0.0392167]
[1726595188959,31.04102396,2368.8,2368.7,0.0392167]
[1726595189163,27.40194812,2368.8,2368.7,0.0392167]
[1726595189706,27.40194812,2368.8,2368.0,0.0392167]
[1726595189707,18.68377,2368.1,2368.0,0.0392167]
[1726595190003,21.32319311,2368.1,2368.0,0.0392167]
[1726595191068,25.54598311,2368.1,2368.0,0.0392167]
[1726595191620,21.32319311,2368.1,2368.0,0.0392167]
[1726595192182,18.68377,2368.1,2368.0,0.0392167]
[1726595194492,20.87962215,2368.1,2368.0,0.0392167]
[1726595195188,13.64130211,2368.1,2368.0,0.0392167]
[1726595195384,8.44558,2368.1,2368.0,0.0392167]
[1726595200325,18.62787,2368.1,2368.0,0.0392167]
[1726595200534,21.26100882,2368.1,2368.0,0.0392167]
[1726595200827,21.70178325,2368.1,2368.0,0.0392167]
[1726595201806,25.92457325,2368.1,2368.0,0.0392167]
[1726595202023,21.70178325,2368.1,2368.0,0.0392167]
[1726595202207,21.70022222,2368.1,2368.0,0.0392167]
[1726595203659,19.50704515,2368.1,2368.0,0.0392167]
[1726595204165,21.70005092,2368.1,2368.0,0.0392167]
[1726595204326,19.50704515,2368.1,2368.0,0.0392167]
[1726595204749,21.70005092,2368.1,2368.0,0.0392167]
[1726595206058,17.09754515,2368.1,2368.0,0.0392167]
[1726595206557,12.32475515,2368.1,2368.0,0.0392167]
[1726595206723,11.88635443,2368.1,2368.0,0.0392167]
[1726595207432,0.44077443,2368.1,2368.0,0.27468837]
[1726595207637,0.44077443,2368.1,2368.0,0.35914695]
[1726595207848,0.44077443,2368.1,2368.0,2.67878837]
[1726595208066,0.44077443,2368.1,2368.0,6.90175837]
[1726595208438,0.44077443,2368.1,2368.0,10.91480372]
[1726595209986,0.44077443,2368.1,2368.0,6.90175837]
[1726595210561,0.44077443,2368.1,2368.0,2.67878837]
[1726595211381,0.44077443,2368.1,2368.0,2.4433167]
[1726595212293,0.44077443,2368.1,2368.0,6.6662867]
[1726595212860,0.44077443,2368.1,2368.0,2.4433167]
[1726595213666,0.44077443,2368.1,2368.0,6.6662867]
[1726595214245,0.44077443,2368.1,2368.0,10.8892567]
[1726595214381,7.42,2368.7,2368.4,4.22215]
[1726595214560,16.35126,2369.0,2368.0,13.2907251]
[1726595214561,4.22129,2369.0,2368.5,6.62567]
[1726595214768,4.22129,2369.0,2368.3,9.16191273]
[1726595214769,11.64086,2369.2,2368.7,6.62515]
[1726595214964,2.19352658,2369.3,2368.7,6.62515]
[1726595214965,4.22082,2369.3,2368.9,2.4036]
[1726595215164,4.22039,2369.5,2369.0,4.22117]
[1726595215404,4.22039,2369.5,2368.6,4.93961273]
[1726595215405,6.41354658,2369.7,2369.2,2.3203]
[1726595215577,7.42,2369.9,2369.4,4.22043]
[1726595215790,4.29277741,2370.1,2369.5,2.3203]
[1726595215791,2.19352658,2370.1,2369.5,2.3203]
[1726595215991,4.21934,2370.1,2369.6,0.23203]
[1726595216801,8.43874,2370.1,2369.6,0.23203]
[1726595217107,8.43873,2370.1,2369.6,0.23203]
[1726595217270,4.21934,2370.1,2369.6,0.23203]
[1726595217808,4.21934,2370.1,2369.6,4.45213]
[1726595218059,4.21941,2370.0,2369.7,0.677243]
[1726595218220,8.43868,2370.1,2369.6,0.23203]
[1726595218513,4.21941,2370.0,2369.6,0.23203]
[1726595218664,4.21933,2370.1,2369.6,0.23203]
[1726595218867,4.21943,2370.0,2369.6,0.23203]
[1726595219572,4.21933,2370.1,2369.6,0.23203]
[1726595220472,4.21959,2369.9,2369.6,0.23203]
[1726595220668,4.21932,2370.1,2369.6,0.23203]
[1726595220980,4.21908,2370.2,2369.6,4.45203]
[1726595221202,4.21908,2370.2,2369.7,3.91370827]
[1726595221381,4.2193,2370.1,2369.7,3.91370827]
[1726595221581,4.21976,2369.8,2369.7,2.3205]
[1726595221892,4.21961,2369.9,2369.7,2.3205]
[1726595222281,4.21949,2370.0,2369.7,2.3205]
[1726595222685,8.43903,2370.0,2369.7,2.3205]
[1726595222884,4.21949,2370.0,2369.7,2.3205]
[1726595223215,8.43901,2370.0,2369.7,2.997782]
[1726595223522,0.55,2370.2,2369.7,2.3205]
[1726595223523,4.21961,2369.9,2369.7,2.3205]
[1726595223809,4.21961,2369.9,2369.5,2.4948]
[1726595224010,0.55,2370.0,2369.5,2.4948]
[1726595224183,4.22004,2369.7,2369.5,2.4948]
[1726595224383,4.22012,2369.6,2369.5,2.4948]
[1726595224579,4.22012,2369.6,2369.0,4.2211]
[1726595224580,4.22049,2369.4,2369.1,2.2549]
[1726595224811,4.22012,2369.6,2368.7,7.28]
[1726595224812,4.22083,2369.2,2368.8,2.2549]
[1726595225012,6.51217,2369.6,2368.8,2.2549]
[1726595225013,4.22103,2369.1,2368.8,2.2549]
[1726595225808,4.22133,2369.0,2368.8,2.2549]
[1726595226345,4.22136,2368.9,2368.8,2.2549]
[1726595226649,4.22131,2369.0,2368.8,2.2549]
[1726595226851,4.22136,2368.9,2368.8,2.2549]
[1726595227011,4.22136,2368.9,2368.5,2.4091]
[1726595227212,4.22136,2368.9,2368.6,0.75474413]
[1726595227436,4.22136,2368.9,2368.5,2.4091]
[1726595227437,4.22155,2368.8,2368.5,2.4091]
[1726595227747,8.44286,2368.9,2368.5,2.4091]
[1726595228109,4.22119,2369.0,2368.5,6.63114]
[1726595228402,4.22137,2368.9,2368.5,6.63114]
[1726595228620,4.22137,2368.9,2368.5,2.4091]
[1726595228862,4.22137,2368.9,2368.6,0.75475113]
[1726595229142,4.22117,2369.1,2368.6,4.97648113]
[1726595229371,4.22138,2368.9,2368.6,0.75475113]
[1726595229573,4.22138,2368.9,2368.5,2.4091]
[1726595229924,4.22113,2369.1,2368.5,2.4091]
[1726595230160,4.22113,2369.1,2368.6,0.08442952]
[1726595230369,4.22126,2369.0,2368.5,6.63115]
[1726595230562,4.22126,2369.0,2368.6,0.75473413]
[1726595231265,4.22138,2368.9,2368.6,0.75473413]
[1726595232029,4.22033668,2368.9,2368.6,0.75473413]
[1726595232663,4.2218,2368.7,2368.5,2.4091]
[1726595232938,4.22162,2368.8,2368.5,2.4091]
[1726595234006,11.64086,2369.2,2368.8,4.22143]
[1726595234166,4.22058,2369.4,2368.9,7.16797885]
[1726595234167,7.42,2369.4,2368.9,7.16797885]
[1726595234360,4.66106747,2369.6,2369.1,4.22087]
[1726595234564,4.22005,2369.7,2369.2,0.422087]
[1726595234902,7.42,2370.1,2370.0,4.2194]
[1726595235111,2.3355,2370.5,2369.9,2.2711]
[1726595235112,4.21899,2370.3,2369.9,2.2711]
[1726595235669,4.21863,2370.5,2369.9,3.342168]
[1726595235967,8.43834,2370.2,2369.9,3.342168]
[1726595236166,4.21923,2370.1,2369.9,2.2711]
[1726595236364,4.21915,2370.2,2369.9,2.2711]
[1726595236673,4.21935,2370.1,2369.9,2.2711]
[1726595236898,4.21915,2370.2,2369.9,2.2711]
[1726595237099,4.21938,2370.1,2369.6,2.3292]
[1726595237297,4.21941,2370.0,2369.7,0.654934]
[1726595237618,4.21941,2370.0,2369.6,2.3292]
[1726595237925,4.21916,2370.2,2369.6,6.5493]
[1726595238381,4.21943,2370.0,2369.6,2.3292]
[1726595238779,4.21943,2370.0,2369.6,2.984149]
[1726595239409,4.21987,2369.8,2369.3,6.61625]
[1726595240418,8.43903,2370.0,2369.4,4.22046]
[1726595240657,4.21951,2370.0,2369.3,6.61625]
[1726595240827,4.21933,2370.1,2369.5,4.2202]
[1726595240980,4.21917,2370.2,2369.5,4.22019]
[1726595241180,4.21917,2370.2,2369.7,4.21991]
[1726595241181,4.21914,2370.2,2369.7,4.21991]
[1726595241427,4.21914,2370.2,2369.7,1.08358]
[1726595241628,8.43835,2370.2,2369.7,5.30349]
[1726595241926,4.21914,2370.2,2369.7,1.08358]
[1726595242440,4.21951,2370.0,2369.6,2.3957]
[1726595244236,8.43903,2370.0,2369.6,2.3957]
[1726595244632,8.43901,2370.0,2369.6,2.3957]
[1726595244832,4.21963,2369.9,2369.6,2.3957]
[1726595245250,0.55,2370.0,2369.2,6.63893]
[1726595245415,4.21996,2369.7,2369.2,6.63892]
[1726595245618,4.21973,2369.9,2369.4,4.2203]
[1726595245858,2.4211,2370.1,2369.4,4.2203]
[1726595246064,4.21967,2369.9,2369.4,4.88415]
[1726595246272,8.43936,2369.9,2369.4,4.88415]
[1726595246558,4.21967,2369.9,2369.4,4.88415]
[1726595247367,4.2198,2369.8,2369.4,4.88415]
[1726595247858,4.2196,2369.9,2369.4,4.88415]
[1726595248054,4.2196,2369.9,2369.5,0.488415]
[1726595248863,4.21992,2369.8,2369.5,0.488415]
[1726595249363,4.21994,2369.7,2369.2,2.4182]
[1726595249725,4.2203,2369.5,2369.2,2.4182]
[1726595250059,4.2203,2369.5,2369.2,3.504234]
[1726595250646,4.2198,2369.8,2369.2,7.724944]
[1726595250854,4.22002,2369.7,2369.2,7.724944]
[1726595251737,0.44095981,2369.6,2369.2,7.724944]
[1726595251940,0.44095981,2369.6,2369.3,1.1945944]
[1726595252147,0.44095981,2369.6,2369.4,4.22039]
[1726595252323,0.44095981,2369.6,2369.4,6.62018]
[1726595252951,0.44095981,2369.6,2369.4,2.3998]
[1726595254829,0.44095981,2369.6,2369.5,4.22029]
[1726595255034,0.44095981,2369.6,2369.5,0.662009]
[1726595257469,0.44095981,2369.6,2369.4,2.3998]
[1726595259176,4.66110981,2369.6,2369.2,6.50985]
[1726595259686,4.22034,2369.5,2369.2,2.2891]
[1726595259841,4.66110981,2369.6,2369.2,7.58303]
[1726595260045,4.22065,2369.3,2368.8,6.51061]
[1726595260352,4.22077,2369.3,2368.8,2.2891]
[1726595260539,4.22092,2369.2,2368.8,2.2891]
[1726595261578,4.22108,2369.1,2368.8,2.2891]
[1726595261878,4.2212,2369.0,2368.6,2.4828]
[1726595262081,4.22155,2368.8,2368.4,2.4828]
[1726595262282,4.22183,2368.7,2368.4,2.4828]
[1726595262589,4.22155,2368.8,2368.4,3.15334]
[1726595262878,4.22131,2369.0,2368.4,3.15334]
[1726595263248,4.22157,2368.8,2368.4,3.15334]
[1726595263961,4.22157,2368.8,2368.4,2.4828]
[1726595264400,10.64278781,2369.0,2368.4,6.70494]
[1726595264568,2.2631,2369.1,2368.4,2.4828]
[1726595264569,6.42133781,2369.1,2368.4,2.4828]
[1726595264752,4.22122,2369.0,2368.5,4.892502]
[1726595264981,4.22115,2369.1,2368.6,4.22187]
[1726595265182,8.4423,2369.1,2368.5,9.114492]
[1726595265392,8.4423,2369.1,2368.5,4.892502]
[1726595265707,4.22122,2369.0,2368.5,4.892502]
[1726595265867,4.22122,2369.0,2368.6,0.7375302]
[1726595266501,4.22115,2369.1,2368.6,0.7375302]
[1726595266502,4.22139,2368.9,2368.6,0.7375302]
[1726595266795,4.22165,2368.8,2368.4,2.4828]
[1726595267191,0.44092878,2368.7,2368.4,2.4828]
[1726595267412,0.44092878,2368.7,2368.4,6.78948457]
[1726595267571,0.44092878,2368.7,2368.4,6.70505]
[1726595267771,0.44092878,2368.7,2368.5,0.670505]
[1726595271707,0.44092878,2368.7,2368.4,2.4828]
[1726595271917,4.66265878,2368.7,2368.4,2.4828]
[1726595272097,0.44092878,2368.7,2368.4,2.4828]
[1726595272989,0.44092878,2368.7,2368.4,6.70503]
[1726595273981,0.44092878,2368.7,2368.4,10.9272]
[1726595274190,0.44092878,2368.7,2368.5,1.09272]
[1726595274605,0.44092878,2368.7,2368.4,2.4828]
[1726595274779,4.66282878,2368.7,2368.4,2.4828]
[1726595275217,0.44092878,2368.7,2368.4,6.7049]
[1726595275377,0.44092878,2368.7,2368.5,4.222]
[1726595275577,0.44092878,2368.7,2368.6,1.092698]
[1726595278310,0.44092878,2368.7,2368.4,6.70498]
[1726595278311,0.44092878,2368.7,2368.4,2.4828]
[1726595278637,4.66277878,2368.7,2368.4,2.4828]
[1726595279391,0.44092878,2368.7,2368.4,6.78941719]
[1726595279728,0.44092878,2368.7,2368.5,4.22197]
[1726595279927,0.44092878,2368.7,2368.6,0.670477]
[1726595280149,0.44092878,2368.7,2368.6,4.892377]
[1726595280293,0.44092878,2368.7,2368.6,11.400377]
[1726595281991,0.44092878,2368.7,2368.6,15.41137974]
[1726595282435,0.13779025,2368.7,2368.6,22.63327974]
[1726595282603,2.1997919,2369.7,2369.2,2.4705]
[1726595282804,2.4914,2369.9,2369.4,8.23139274]
[1726595282805,8.9108719,2369.9,2369.4,8.23139274]
[1726595282988,11.07969011,2370.0,2369.4,8.23139274]
[1726595283187,10.6388119,2370.0,2369.4,12.45176274]
[1726595283386,6.42112967,2370.0,2369.5,1.26988127]
[1726595283826,9.62161967,2370.1,2369.7,2.3762]
[1726595284034,8.69019967,2370.2,2369.7,2.3762]
[1726595284205,4.47101967,2370.2,2369.7,3.9859074]
[1726595284404,2.2694,2370.2,2369.8,8.23065274]
[1726595284731,6.48845,2370.2,2369.7,8.2058474]
[1726595285406,6.48845,2370.2,2369.4,6.32560274]
[1726595285733,0.44087152,2370.1,2369.6,4.22002]
[1726595285953,0.44087152,2370.1,2369.8,10.50830274]
[1726595286259,0.44087152,2370.1,2369.8,6.4973]
[1726595286430,0.44087152,2370.1,2369.8,2.2776]
[1726595287028,0.44087152,2370.1,2369.5,4.22017]
[1726595287221,4.66021152,2370.1,2369.6,0.82311727]
[1726595287425,0.44087152,2370.1,2369.6,5.04307727]
[1726595287652,0.44087152,2370.1,2369.6,9.05408001]
[1726595287959,0.44087152,2370.1,2369.7,1.134998]
[1726595288248,4.66019152,2370.1,2369.7,1.134998]
[1726595288953,0.44087152,2370.1,2369.7,1.134998]
[1726595289253,0.43880087,2370.1,2369.7,1.134998]
[1726595289416,4.65808087,2370.1,2369.7,1.134998]
[1726595289612,0.43880087,2370.1,2369.7,1.134998]
[1726595289814,4.65804087,2370.1,2369.7,5.354918]
[1726595290055,4.65804087,2370.1,2369.7,1.134998]
[1726595291134,4.65810087,2370.1,2369.6,4.22001]
[1726595291337,0.43880087,2370.1,2369.7,4.21993]
[1726595291710,4.65805087,2370.1,2369.6,4.22001]
[1726595292751,0.43880087,2370.1,2369.7,4.21984]
[1726595293054,0.43880087,2370.1,2369.7,5.293415]
[1726595293221,4.65808087,2370.1,2369.7,5.293415]
[1726595293649,4.21941,2370.0,2369.5,6.51617]
[1726595293863,4.21941,2370.0,2369.5,2.2959]
[1726595293864,4.21961,2369.9,2369.5,2.2959]
[1726595294075,4.21961,2369.9,2369.4,4.22045]
[1726595294076,4.21981,2369.8,2369.4,4.22045]
[1726595294275,4.21981,2369.8,2369.4,4.22043]
[1726595294482,4.21981,2369.8,2369.3,4.942599]
[1726595294639,4.21981,2369.8,2369.4,0.86980908]
[1726595294845,4.21981,2369.8,2369.4,5.09020908]
[1726595295586,6.5046,2370.0,2369.4,9.10121182]
[1726595295587,4.21966,2369.9,2369.4,9.10121182]
[1726595295782,4.21966,2369.9,2369.5,4.22018]
[1726595295985,4.65803087,2370.1,2369.7,4.21985]
[1726595296352,0.43880087,2370.1,2369.7,4.21985]
[1726595296745,4.65809087,2370.1,2369.7,4.21985]
[1726595296949,0.43880087,2370.1,2369.7,4.21985]
[1726595297179,0.43880087,2370.1,2369.8,1.61015419]
[1726595297560,4.65803087,2370.1,2369.8,1.61015419]
[1726595297888,4.65803087,2370.1,2369.6,8.43996]
[1726595298194,4.21941,2370.0,2369.6,4.21995]
[1726595298485,4.21941,2370.0,2369.5,10.72667]
[1726595298781,4.21941,2370.0,2369.6,4.22009]
[1726595298990,8.4389,2370.0,2369.5,8.47440717]
[1726595299490,8.4389,2370.0,2369.1,6.49881]
[1726595299491,4.22024,2369.6,2369.1,6.49881]
[1726595299643,4.22024,2369.6,2369.2,4.22075]
[1726595299846,4.22004,2369.7,2369.2,12.45248274]
[1726595300116,4.22004,2369.7,2369.2,12.45249274]
[1726595300555,4.22032,2369.5,2369.1,6.49879]
[1726595300750,4.22014,2369.6,2369.1,6.49883]
[1726595300960,8.44035,2369.6,2369.1,6.49883]
[1726595301188,4.22008,2369.7,2369.2,4.22081]
[1726595301356,4.22008,2369.7,2369.3,1.071964]
[1726595301553,4.22008,2369.7,2369.3,5.292604]
[1726595301754,6.68259,2369.8,2369.3,5.292604]
[1726595301956,2.4628,2369.8,2369.4,8.23146274]
[1726595302195,2.4628,2369.8,2369.4,5.57286667]
[1726595302758,4.21996,2369.7,2369.3,5.292604]
[1726595303177,10.90254,2369.8,2369.3,5.292464]
[1726595303384,4.21995,2369.7,2369.3,5.292464]
[1726595303590,2.4628,2369.8,2369.4,4.22038]
[1726595303794,4.21952,2370.0,2369.5,4.22029]
[1726595303795,2.3892,2370.0,2369.5,4.22029]
[1726595304094,4.2193,2370.1,2369.6,10.49224274]
[1726595304257,4.21951,2370.0,2369.6,3.82548674]
[1726595305656,4.21988,2369.8,2369.3,2.2816]
[1726595305862,4.21989,2369.8,2369.3,2.2816]
[1726595306195,4.21996,2369.7,2369.3,7.152392]
[1726595306695,4.21979,2369.8,2369.3,11.372882]
[1726595306898,4.21979,2369.8,2369.3,7.152332]
[1726595307099,4.21998,2369.7,2369.4,1.11633347]
[1726595307986,4.21998,2369.7,2369.3,2.931842]
[1726595308190,4.2203,2369.5,2369.1,6.50259]
[1726595308409,4.2203,2369.5,2369.1,6.50252]
[1726595309129,2.4332,2369.6,2369.1,6.50249]
[1726595309284,4.22004,2369.7,2369.4,4.01100274]
[1726595310516,4.2198,2369.8,2369.4,4.01100274]
[1726595310817,7.42,2369.9,2369.6,8.23103274]
[1726595311015,4.54268554,2370.1,2369.8,4.01100274]
[1726595311016,4.21933,2370.1,2369.8,4.01100274]
[1726595311227,4.21933,2370.1,2369.6,8.23103274]
[1726595311408,4.21941,2370.0,2369.6,8.23103274]
[1726595311722,4.21926,2370.1,2369.6,12.45111274]
[1726595311896,4.21926,2370.1,2369.6,9.70621401]
[1726595312107,4.21942,2370.0,2369.6,9.70621401]
[1726595312432,4.21942,2370.0,2369.6,5.69521127]
[1726595312788,4.21942,2370.0,2369.6,9.70621401]
[1726595313124,4.21942,2370.0,2369.6,5.69521127]
[1726595313491,4.21942,2370.0,2369.6,1.47518127]
[1726595313702,4.21942,2370.0,2369.5,6.52099]
[1726595313703,4.21969,2369.9,2369.5,6.52099]
[1726595314218,6.49126,2369.9,2369.5,6.52099]
[1726595314607,4.21942,2370.0,2369.5,6.5209]
[1726595314815,6.4724,2370.1,2369.6,4.01100274]
[1726595314984,4.21942,2370.0,2369.6,8.23105274]
[1726595315184,4.21942,2370.0,2369.6,9.28422801]
[1726595315905,4.21962,2369.9,2369.6,1.05317527]
[1726595316113,4.21942,2370.0,2369.6,1.05317527]
[1726595316114,4.21942,2370.0,2369.6,5.27327527]
[1726595316433,4.21943,2370.0,2369.6,5.27327527]
[1726595316938,6.47234,2370.1,2369.8,4.21972]
[1726595316939,2.2531,2370.1,2369.8,4.21972]
[1726595317118,4.21908,2370.2,2369.9,2.3412]
[1726595317320,16.20249554,2370.4,2369.9,2.3412]
[1726595317538,2.20079822,2370.5,2370.2,4.01100274]
[1726595317833,7.4592167,2370.8,2370.6,4.21824]
[1726595318032,0.0392167,2370.8,2370.7,4.01100274]
[1726595319027,0.0392167,2370.8,2370.5,4.01100274]
[1726595319233,0.0392167,2370.8,2370.6,1.05254427]
[1726595319593,0.0392167,2370.8,2370.7,4.01100274]
[1726595320000,0.0392167,2370.8,2370.7,4.0953518]
[1726595320204,0.0392167,2370.8,2370.7,8.3135118]
[1726595320496,0.0392167,2370.8,2370.7,4.01100274]
[1726595320731,0.0392167,2370.8,2370.7,5.36100544]
[1726595321123,0.0392167,2370.8,2370.7,1.3500027]
[1726595321435,0.0392167,2370.8,2370.6,1.05254427]
[1726595322325,0.0392167,2370.8,2370.4,2.2959]
[1726595322507,4.2573567,2370.8,2370.4,2.2959]
[1726595322708,4.21818,2370.7,2370.2,6.57269]
[1726595323000,4.2572567,2370.8,2370.2,6.57269]
[1726595323340,0.0392167,2370.8,2370.5,4.01100274]
[1726595323550,0.0392167,2370.8,2370.6,0.08435786]
[1726595324060,0.0392167,2370.8,2370.5,4.01100274]
[1726595324372,0.0392167,2370.8,2370.6,3.20316027]
[1726595324538,0.0392167,2370.8,2370.7,4.01100274]
[1726595325441,0.0392167,2370.8,2370.7,4.09535156]
[1726595325618,0.0392167,2370.8,2370.7,8.31351156]
[1726595325951,0.0392167,2370.8,2370.7,0.08434882]
[1726595326255,0.0392167,2370.8,2370.7,1.6651997]
[1726595326854,0.0392167,2370.8,2370.6,2.3802]
[1726595327352,0.0392167,2370.8,2370.4,6.52049]
[1726595329039,0.0392167,2370.8,2370.4,2.3018]
[1726595329248,0.0392167,2370.8,2370.4,6.52038]
[1726595329955,4.2572967,2370.8,2370.4,2.3018]
[1726595330158,4.2572967,2370.8,2370.3,6.64526]
[1726595330159,0.0392167,2370.8,2370.3,6.64526]
[1726595330462,4.21836,2370.6,2370.1,6.64548]
[1726595330622,4.21836,2370.6,2370.1,2.4264]
[1726595330623,4.21852,2370.5,2370.1,2.4264]
[1726595331276,4.21845,2370.6,2370.2,0.08436974]
[1726595331453,4.21845,2370.6,2370.1,6.64562]
[1726595331764,4.21845,2370.6,2370.2,0.08436919]
[1726595335247,4.21845,2370.6,2370.1,8.032029]
[1726595336335,4.21857,2370.5,2370.1,8.032029]
[1726595336772,8.43693,2370.6,2370.1,8.032029]
[1726595336976,8.43693,2370.6,2370.2,0.8032029]
[1726595337536,8.43689,2370.6,2370.2,0.8032029]
[1726595337861,4.21844,2370.6,2370.2,0.88757206]
[1726595338172,8.43689,2370.6,2370.2,0.88757206]
[1726595338497,8.43687,2370.6,2370.2,0.88757206]
[1726595338864,4.21843,2370.6,2370.2,0.88757206]
[1726595339071,8.43688,2370.6,2370.2,0.88757206]
[1726595339254,4.21872,2370.4,2370.1,2.4264]
[1726595339653,4.21899,2370.3,2369.9,2.303]
[1726595339870,4.21896,2370.3,2369.9,2.303]
[1726595340090,4.21896,2370.3,2369.9,6.52257]
[1726595340599,4.21888,2370.3,2369.9,11.816286]
[1726595340767,6.47703,2370.5,2370.0,4.21929]
[1726595340967,4.21853,2370.5,2370.1,2.3089]
[1726595341303,4.21876,2370.4,2370.1,2.3089]
[1726595341982,4.21876,2370.4,2370.1,3.05022715]
[1726595343098,8.43754,2370.4,2370.1,3.05022715]
[1726595343295,4.21891,2370.3,2370.1,2.3089]
[1726595343895,4.21852,2370.5,2370.1,2.3089]
[1726595343896,4.2187,2370.4,2370.1,2.3089]
[1726595345678,8.43713,2370.5,2370.1,2.3089]
[1726595345939,8.43713,2370.5,2370.1,3.383677]
[1726595346204,8.43713,2370.5,2370.1,7.38996072]
[1726595346569,4.21873,2370.4,2370.1,7.38996072]
[1726595348876,4.21873,2370.4,2370.1,2.3089]
[1726595349312,6.52007,2370.3,2369.9,4.21952]
[1726595349468,4.21914,2370.2,2369.8,2.3423]
[1726595349692,4.21914,2370.2,2368.9,4.43176199]
[1726595349693,4.21949,2370.0,2369.6,2.3423]
[1726595349898,4.2196,2369.9,2369.6,2.3423]
[1726595350135,4.21977,2369.8,2369.2,2.3423]
[1726595350296,2.3012,2369.9,2369.2,6.985113]
[1726595350497,4.22012,2369.6,2369.2,2.764393]
[1726595350801,4.2204,2369.5,2369.2,2.764393]
[1726595351619,8.44085,2369.5,2369.2,2.764393]
[1726595351831,4.2204,2369.5,2369.2,2.3423]
[1726595352046,4.22059,2369.4,2369.0,2.3787]
[1726595352209,6.69711,2369.5,2369.1,5.06690909]
[1726595352413,8.45778373,2369.7,2369.3,8.22692372]
[1726595352622,8.45778373,2369.7,2369.4,0.82269237]
[1726595352623,2.4768,2369.7,2369.4,0.82269237]
[1726595352934,6.69676,2369.7,2369.3,8.22692372]
[1726595353369,6.69676,2369.7,2369.3,4.00628372]
[1726595353602,4.21996,2369.7,2369.4,2.3494]
[1726595354438,5.98088373,2369.8,2369.4,3.40704537]
[1726595354639,5.98088373,2369.8,2369.4,7.62749537]
[1726595354841,5.98088373,2369.8,2369.4,3.40704537]
[1726595355072,1.76102373,2369.8,2369.2,2.421]
[1726595355312,4.22032,2369.5,2369.2,2.421]
[1726595355439,4.2202,2369.6,2369.2,2.421]
[1726595356084,1.76102373,2369.7,2369.2,2.421]
[1726595356085,4.22055,2369.4,2369.2,2.421]
[1726595356266,4.22045,2369.5,2369.2,2.421]
[1726595356449,6.63895,2369.6,2369.0,2.3674]
[1726595356663,4.22049,2369.4,2369.0,2.3674]
[1726595356863,4.22049,2369.4,2369.0,6.58858]
[1726595359488,4.22049,2369.4,2369.0,2.3674]
[1726595359982,4.22049,2369.4,2369.0,6.58856]